{"text_format":"3","workbook":"xlsx","n_sheets":26,"sheets":["Start","1","2","3","4","5","6","7","8","9","10","11","12","13","14","15","16","17","18","19","20","21","22","23","24","Weitere Informationen"],"not_rendered":{"images":25,"defined_names":5,"pivot_tables":19},"read":"whole","date_system":"1900"}

{"sheet":"Start","index":0,"n_rows":5,"n_cols":1,"rows_kept":5}
["Willkommen\nAnweisungen für die Sprachausgabe: Machen Sie mehr aus PivotTables. Mit einer einfachen PivotTable erhalten Sie eine allgemeine Zusammenfassung Ihrer Daten, aber manchmal benötigen Sie detailliertere Antworten auf spezifische Fragen. In dieser Situation kann das Hinzufügen weiterer Spaltenfelder und Zeilenfelder weiterhelfen. \nAus den Anweisungen erfahren Sie, zu welchen Zellen Sie navigieren müssen, um ein Feature zu verwenden oder mit dem Lesen fortzufahren.\nDrücken Sie STRG+NACH-UNTEN-TASTE, um anzufangen."]
["Machen Sie mehr aus PivotTables"]
["Mit einer einfachen PivotTable erhalten Sie eine allgemeine Zusammenfassung Ihrer Daten, aber manchmal benötigen Sie detailliertere Antworten auf \nspezifische Fragen. In dieser Situation kann das Hinzufügen weiterer \nSpaltenfelder und Zeilenfelder weiterhelfen."]
["WISSENSWERTES\nHaben Sie das erste Tutorial absolviert? Falls nicht, navigieren Sie zu \"Datei\" > \"Neu\", und suchen Sie nach \"Erstellen Ihrer ersten PivotTable\"."]
["Sie gelangen wieder zum Anfang, wenn Sie STRG+POS1 drücken. Zum Starten der Tour drücken Sie STRG+NACH-UNTEN-TASTE."]

{"sheet":"1","index":1,"n_rows":16,"n_cols":9,"rows_kept":16}
["Im ersten Tutorial haben wir Ihnen das Konzept von PivotTables vorgestellt. Wir haben außerdem erläutert, wie ein Zeilenfeld als Bedingung zur Aufgliederung eines Wertfelds verwendet werden kann.   "]
["Die Zellen H10 bis I14 enthalten eine PivotTable, die die Daten in den Zellen B8 bis E16 zusammenfasst. Die PivotTable weist zwei Spalten auf: \"Käufer\" und \"Summe von Betrag\". Die Spalte \"Käufer\" enthält die Werte \"Papa\", \"Kevin\", \"Mama\" und \"Gesamtergebnis\"; die Spalte \"Summe von Betrag\" enthält die Werte 220 €, 270 €, 810 € und 1.300 €. Die Spalte \"Käufer\" besteht aus einem Zeilenfeld, und die Spalte \"Summe von Betrag\" besteht aus einem Wertfeld."]
["Um dieses Tutorial fortzusetzen, drücken Sie STRG+NACH-UNTEN-TASTE. Um zum vorhergehenden Blatt zu wechseln, drücken Sie STRG+NACH-OBEN-TASTE."]
[]
[]
[]
[]
[null,"Datum","Käufer","Typ","Betrag"]
["Dieses Beispiel zeigt, wie das Zeilenfeld...","2017-01-01","Papa","Geschenke",{"v":95,"d":"95 €"}]
["...das Wertfeld aufgliedert.","2017-01-15","Mama","Essen",{"v":325,"d":"325 €"},null,null,"Käufer","Summe von Betrag"]
[null,"2017-01-17","Mama","Eintrittskarten",{"v":250,"d":"250 €"},null,null,"Papa",{"v":220,"d":"220 €"}]
[null,"2017-01-21","Papa","Essen",{"v":125,"d":"125 €"},null,null,"Kevin",{"v":270,"d":"270 €"}]
[null,"2017-02-02","Mama","Essen",{"v":235,"d":"235 €"},null,null,"Mama",{"v":810,"d":"810 €"}]
[null,"2017-02-20","Kevin","Musik",{"v":20,"d":"20 €"},null,null,"Grand Total",{"v":1300,"d":"1,300 €"}]
[null,"2017-02-25","Kevin","Eintrittskarten",{"v":125,"d":"125 €"}]
[null,"2017-02-25","Kevin","Sport",{"v":125,"d":"125 €"}]

{"sheet":"2","index":2,"n_rows":108,"n_cols":7,"rows_kept":108}
["Aber beim ersten Blick auf eine PivotTable müssen Sie vielleicht feststellen, dass Sie mehr Antworten aus ihr benötigen."]
["Beim ersten Blick auf eine PivotTable haben Sie vielleicht Fragen wie \"Wann sind diese Käufe erfolgt?\", \"Wofür hat jeder der Personen Geld ausgegeben?\" oder \"Was hat Mama gekauft, das so teuer war?\"."]
["In diesem Beispiel zeigen die Zellen F11 bis G15 die gleiche zweispaltige PivotTable wie zuvor. Die Spalte \"Käufer\" ist ein Zeilenfeld und enthält die Werte \"Papa\", \"Kevin\", \"Mama\" und \"Gesamtergebnis\"; die Spalte \"Summe von Betrag\" ist das Wertfeld und enthält die Werte 220 €, 270 €, 810 € und 1,300 €. "]
["Um dieses Tutorial fortzusetzen, drücken Sie STRG+NACH-UNTEN-TASTE. Um zum vorhergehenden Blatt zu wechseln, drücken Sie STRG+NACH-OBEN-TASTE."]
[]
[]
[]
[]
[]
[]
[{"$nulls":5},"Käufer","Summe von Betrag"]
[{"$nulls":5},"Papa",{"v":220,"d":"220 €"}]
[{"$nulls":5},"Kevin",{"v":270,"d":"270 €"}]
[{"$nulls":5},"Mama",{"v":810,"d":"810 €"}]
[{"$nulls":5},"Grand Total",{"v":1300,"d":"1,300 €"}]
{"$rows_empty":84}
[null,"Datum","Käufer","Typ","Betrag"]
[null,"2017-01-01","Papa","Geschenke",{"v":95,"d":"95 €"}]
[null,"2017-01-15","Mama","Essen",{"v":325,"d":"325 €"}]
[null,"2017-01-17","Mama","Eintrittskarten",{"v":250,"d":"250 €"}]
[null,"2017-01-21","Papa","Essen",{"v":125,"d":"125 €"}]
[null,"2017-02-02","Mama","Essen",{"v":235,"d":"235 €"}]
[null,"2017-02-20","Kevin","Musik",{"v":20,"d":"20 €"}]
[null,"2017-02-25","Kevin","Eintrittskarten",{"v":125,"d":"125 €"}]
[null,"2017-02-25","Kevin","Sport",{"v":125,"d":"125 €"}]

{"sheet":"3","index":3,"n_rows":108,"n_cols":7,"rows_kept":108}
["Das sind alles gute Fragen, aber konzentrieren wir uns für den Moment nur auf eine Frage."]
["Wofür hat jeder der Personen Geld ausgegeben?"]
["Zur Referenz enthalten die Zellen F11 bis G15 die gleiche zweispaltige PivotTable wie zuvor. Die Spalte \"Käufer\" ist ein Zeilenfeld und enthält die Werte \"Papa\", \"Kevin\", \"Mama\" und \"Gesamtergebnis\"; die Spalte \"Summe von Betrag\" ist das Wertfeld und enthält die Werte 220 €, 270 €, 810 € und 1,300 €. "]
["Um dieses Tutorial fortzusetzen, drücken Sie STRG+NACH-UNTEN-TASTE. Um zum vorhergehenden Blatt zu wechseln, drücken Sie STRG+NACH-OBEN-TASTE."]
[]
[]
[]
[]
[]
[]
[{"$nulls":5},"Käufer","Summe von Betrag"]
[{"$nulls":5},"Papa",{"v":220,"d":"220 €"}]
[{"$nulls":5},"Kevin",{"v":270,"d":"270 €"}]
[{"$nulls":5},"Mama",{"v":810,"d":"810 €"}]
[{"$nulls":5},"Grand Total",{"v":1300,"d":"1,300 €"}]
{"$rows_empty":84}
[null,"Datum","Käufer","Typ","Betrag"]
[null,"2017-01-01","Papa","Geschenke",{"v":95,"d":"95 €"}]
[null,"2017-01-15","Mama","Essen",{"v":325,"d":"325 €"}]
[null,"2017-01-17","Mama","Eintrittskarten",{"v":250,"d":"250 €"}]
[null,"2017-01-21","Papa","Essen",{"v":125,"d":"125 €"}]
[null,"2017-02-02","Mama","Essen",{"v":235,"d":"235 €"}]
[null,"2017-02-20","Kevin","Musik",{"v":20,"d":"20 €"}]
[null,"2017-02-25","Kevin","Eintrittskarten",{"v":125,"d":"125 €"}]
[null,"2017-02-25","Kevin","Sport",{"v":125,"d":"125 €"}]

{"sheet":"4","index":4,"n_rows":108,"n_cols":9,"rows_kept":108}
["Die letzte Frage, die wir gestellt haben, war \"Wofür hat jeder der Personen Geld ausgegeben?\""]
["Wir haben diese Frage beantwortet, indem wir ein Spaltenfeld für \"Typ\" hinzugefügt haben. Daher weist die PivotTable jetzt fünf neue Spalten auf, die uns den Typ der von jeder Person getätigten Käufe angeben. "]
["Unsere neue PivotTable reicht jetzt von Zelle C10 bis I15 und hat Spalten für \"Käufer\", \"Essen\", \"Musik\", \"Sport\", \"Eintrittskarten\", \"Geschenke\" und \"Gesamtergebnis\". Die Spalten \"Käufer\" und \"Gesamtergebnis\" sind die gleichen wie zuvor, und die neuen Detailspalten befinden sich zwischen ihnen."]
["Um dieses Tutorial fortzusetzen, drücken Sie STRG+NACH-UNTEN-TASTE. Um zum vorhergehenden Blatt zu wechseln, drücken Sie STRG+NACH-OBEN-TASTE."]
[]
[]
[]
[]
[]
[null,null,"Summe von Betrag","Typ"]
[null,null,"Käufer","Essen","Musik","Sport","Eintrittskarten","Geschenke","Grand Total"]
[null,null,"Papa",{"v":125,"d":"125 €"},{"$nulls":3},{"v":95,"d":"95 €"},{"v":220,"d":"220 €"}]
[null,null,"Kevin",null,{"v":20,"d":"20 €"},{"v":125,"d":"125 €"},{"v":125,"d":"125 €"},null,{"v":270,"d":"270 €"}]
[null,null,"Mama",{"v":560,"d":"560 €"},null,null,{"v":250,"d":"250 €"},null,{"v":810,"d":"810 €"}]
[null,null,"Grand Total",{"v":685,"d":"685 €"},{"v":20,"d":"20 €"},{"v":125,"d":"125 €"},{"v":375,"d":"375 €"},{"v":95,"d":"95 €"},{"v":1300,"d":"1,300 €"}]
{"$rows_empty":84}
[null,"Datum","Käufer","Typ","Betrag"]
[null,"2017-01-01","Papa","Geschenke",{"v":95,"d":"95 €"}]
[null,"2017-01-15","Mama","Essen",{"v":325,"d":"325 €"}]
[null,"2017-01-17","Mama","Eintrittskarten",{"v":250,"d":"250 €"}]
[null,"2017-01-21","Papa","Essen",{"v":125,"d":"125 €"}]
[null,"2017-02-02","Mama","Essen",{"v":235,"d":"235 €"}]
[null,"2017-02-20","Kevin","Musik",{"v":20,"d":"20 €"}]
[null,"2017-02-25","Kevin","Eintrittskarten",{"v":125,"d":"125 €"}]
[null,"2017-02-25","Kevin","Sport",{"v":125,"d":"125 €"}]

{"sheet":"5","index":5,"n_rows":108,"n_cols":9,"rows_kept":108}
["Wenn die PivotTable schwer verständlich ist, versuchen Sie es so: Lesen Sie von links, dann von oben und anschließend nach unten. Im Beispiel unten befinden sich \"Papa\" in Zelle C12, \"Essen\" für 125 € in Zelle D12, \"Geschenke\" für 95 € in Zelle E12 und ein Gesamtergebnis von 220 € in Zelle I12. Die Zeilen 13 und 14 zeigen die Details für Kevin und Mama, und Zeile 15 zeigt das Gesamtergebnis."]
["Um dieses Tutorial fortzusetzen, drücken Sie STRG+NACH-UNTEN-TASTE. Um zum vorhergehenden Blatt zu wechseln, drücken Sie STRG+NACH-OBEN-TASTE."]
{"$rows_empty":7}
[null,null,"Summe von Betrag","Typ"]
[null,null,"Käufer","Essen","Geschenke","Musik","Sport","Eintrittskarten","Grand Total"]
[null,null,"Papa",{"v":125,"d":"125 €"},{"v":95,"d":"95 €"},{"$nulls":3},{"v":220,"d":"220 €"}]
[null,null,"Kevin",null,null,{"v":20,"d":"20 €"},{"v":125,"d":"125 €"},{"v":125,"d":"125 €"},{"v":270,"d":"270 €"}]
[null,null,"Mama",{"v":560,"d":"560 €"},{"$nulls":3},{"v":250,"d":"250 €"},{"v":810,"d":"810 €"}]
[null,null,"Grand Total",{"v":685,"d":"685 €"},{"v":95,"d":"95 €"},{"v":20,"d":"20 €"},{"v":125,"d":"125 €"},{"v":375,"d":"375 €"},{"v":1300,"d":"1,300 €"}]
{"$rows_empty":84}
[null,"Datum","Käufer","Typ","Betrag"]
[null,"2017-01-01","Papa","Geschenke",{"v":95,"d":"95 €"}]
[null,"2017-01-15","Mama","Essen",{"v":325,"d":"325 €"}]
[null,"2017-01-17","Mama","Eintrittskarten",{"v":250,"d":"250 €"}]
[null,"2017-01-21","Papa","Essen",{"v":125,"d":"125 €"}]
[null,"2017-02-02","Mama","Essen",{"v":235,"d":"235 €"}]
[null,"2017-02-20","Kevin","Musik",{"v":20,"d":"20 €"}]
[null,"2017-02-25","Kevin","Eintrittskarten",{"v":125,"d":"125 €"}]
[null,"2017-02-25","Kevin","Sport",{"v":125,"d":"125 €"}]

{"sheet":"6","index":6,"n_rows":3,"n_cols":1,"rows_kept":3}
["Führen Sie das jetzt nicht aus, aber nach zwei weiteren Schritten arbeiten Sie mit einer PivotTable. Im ersten Schritt erstellen Sie nun Details im Feld \"Spalten\". Dazu platzieren Sie das Feld \"Typ\" im Bereich des Felds \"Spalten\"."]
["Abbildung einer Liste der PivotTable-Felder mit einem Pfeilcursor, der das Feld \"Typ\" auf den Bereich \"Spalten\" zieht"]
["Um dieses Tutorial fortzusetzen, drücken Sie STRG+NACH-UNTEN-TASTE. Um zum vorhergehenden Blatt zu wechseln, drücken Sie STRG+NACH-OBEN-TASTE."]

{"sheet":"7","index":7,"n_rows":108,"n_cols":8,"rows_kept":108}
["1. Der PivotTable-Bereich für dieses Beispiel befindet sich in den Zellen B13 bis C17. Navigieren Sie zu einer dieser Zellen."]
["2. Drücken Sie ALT+JY, L, um die Liste der PivotTable-Felder zu starten. Der Fokus liegt standardmäßig auf dem Textfeld „Suche“: „Suche“ bearbeiten"]
["3. Drücken Sie die Pfeiltasten, um das Feld \"Typ\" auszuwählen. Nachdem die Auswahl erfolgt ist, drücken Sie die LEERTASTE, um das Feld \"Typ\" dem Bereich \"Zeilen\" hinzuzufügen. "]
["4. Drücken Sie die TAB-TASTE, um das Feld „Typ“ auszuwählen. Drücken Sie die EINGABETASTE und dann die Pfeiltasten, um „Zu Spaltenbezeichnungen verschieben“ auszuwählen. Drücken Sie die EINGABETASTE, um das Feld „Typ“ zum Bereich „Spalten“ hinzuzufügen. Drücken Sie ALT+JY+L, um den PivotTable-Feldbereich zu schließen."]
["Zum Fortsetzen dieses Tutorials drücken Sie STRG+NACH-UNTEN. Um zum vorhergehenden Blatt zu wechseln, drücken Sie STRG+NACH-OBEN-TASTE."]
[]
[]
[]
[{"$nulls":7},{"$f":"IF(AND($B$14=\"Käufer\",$H$17=810),\"Gut gemacht. Sie haben Ihr erstes\",\" \")","v":" "}]
[{"$nulls":7},{"$f":"IF(AND($B$14=\"Käufer\",$H$17=810),\"Spaltenfeld platziert. Klicken Sie\",\" \")","v":" "}]
[{"$nulls":7},{"$f":"IF(AND($B$14=\"Käufer\",$H$17=810),\"auf Weiter, um fortzufahren...\",\" \")","v":" "}]
[]
[null,"Käufer","Summe von Betrag"]
[null,"Papa",{"v":220,"d":"220 €"}]
[null,"Kevin",{"v":270,"d":"270 €"}]
[null,"Mama",{"v":810,"d":"810 €"}]
[null,"Gesamtergebnis",{"v":1300,"d":"1,300 €"}]
{"$rows_empty":82}
[null,"Datum","Käufer","Typ","Betrag"]
[null,"2017-01-01","Papa","Geschenke",{"v":95,"d":"95 €"}]
[null,"2017-01-15","Mama","Essen",{"v":325,"d":"325 €"}]
[null,"2017-01-17","Mama","Eintrittskarten",{"v":250,"d":"250 €"}]
[null,"2017-01-21","Papa","Essen",{"v":125,"d":"125 €"}]
[null,"2017-02-02","Mama","Essen",{"v":235,"d":"235 €"}]
[null,"2017-02-20","Kevin","Musik",{"v":20,"d":"20 €"}]
[null,"2017-02-25","Kevin","Eintrittskarten",{"v":125,"d":"125 €"}]
[null,"2017-02-25","Kevin","Sport",{"v":125,"d":"125 €"}]

{"sheet":"8","index":8,"n_rows":108,"n_cols":9,"rows_kept":108}
["Überprüfen wir einmal die PivotTable, die Sie gerade erstellt haben. Diesmal haben wir ein paar besondere Farben hinzugefügt, um die Zeilen-, Spalten- und Wertfelder voneinander abzuheben."]
["Das Zeilenfeld reicht von Zelle C10 bis C13 und ist gelb gefärbt."]
["Das Spaltenfeld reicht von Zelle D9 bis H10 und ist orange gefärbt."]
["Das Wertfeld reicht von Zelle D11 bis H13 und weist einen blauen Farbton auf."]
["Um dieses Tutorial fortzusetzen, drücken Sie STRG+NACH-UNTEN-TASTE. Um zum vorhergehenden Blatt zu wechseln, drücken Sie STRG+NACH-OBEN-TASTE."]
[]
[]
[]
[null,null,"Summe von Betrag","Typ"]
[null,null,"Käufer","Essen","Geschenke","Musik","Sport","Eintrittskarten","Grand Total"]
[null,null,"Papa",{"v":125,"d":"125 €"},{"v":95,"d":"95 €"},{"$nulls":3},{"v":220,"d":"220 €"}]
[null,null,"Kevin",null,null,{"v":20,"d":"20 €"},{"v":125,"d":"125 €"},{"v":125,"d":"125 €"},{"v":270,"d":"270 €"}]
[null,null,"Mama",{"v":560,"d":"560 €"},{"$nulls":3},{"v":250,"d":"250 €"},{"v":810,"d":"810 €"}]
[null,null,"Grand Total",{"v":685,"d":"685 €"},{"v":95,"d":"95 €"},{"v":20,"d":"20 €"},{"v":125,"d":"125 €"},{"v":375,"d":"375 €"},{"v":1300,"d":"1,300 €"}]
{"$rows_empty":85}
[null,"Datum","Käufer","Typ","Betrag"]
[null,"2017-01-01","Papa","Geschenke",{"v":95,"d":"95 €"}]
[null,"2017-01-15","Mama","Essen",{"v":325,"d":"325 €"}]
[null,"2017-01-17","Mama","Eintrittskarten",{"v":250,"d":"250 €"}]
[null,"2017-01-21","Papa","Essen",{"v":125,"d":"125 €"}]
[null,"2017-02-02","Mama","Essen",{"v":235,"d":"235 €"}]
[null,"2017-02-20","Kevin","Musik",{"v":20,"d":"20 €"}]
[null,"2017-02-25","Kevin","Eintrittskarten",{"v":125,"d":"125 €"}]
[null,"2017-02-25","Kevin","Sport",{"v":125,"d":"125 €"}]

{"sheet":"9","index":9,"n_rows":3,"n_cols":1,"rows_kept":3}
["Sie können das aber auch so betrachten: Das Zeilenfeld befindet sich links und das Spaltenfeld oben. Beide stellen eine Bedingung für das Wertfeld bereit, das sie zusammenfasst."]
["Ein Konzeptbild zeigt einen rechteckigen Bereich mit vier Abschnitten, der das Zeilenfeld unten links in Gelb, das Spaltenfeld oben rechts in Orange und das Wertfeld unten rechts in Blau zeigt."]
["Um dieses Tutorial fortzusetzen, drücken Sie STRG+NACH-UNTEN-TASTE. Um zum vorhergehenden Blatt zu wechseln, drücken Sie STRG+NACH-OBEN-TASTE."]

{"sheet":"10","index":10,"n_rows":3,"n_cols":1,"rows_kept":3}
["Veranschaulichen Sie sich die Feldliste in dieser Weise. Das Zeilenfeld befindet sich links und das Spaltenfeld oben. Beide stellen eine Bedingung für das Wertfeld bereit, das sie zusammenfasst."]
["Ein Konzeptbild zeigt die Liste der PivotTable-Felder mit dem Zeilenfeld unten links in Gelb, dem Spaltenfeld oben rechts in Orange und dem Wertfeld unten rechts in Blau."]
["Um dieses Tutorial fortzusetzen, drücken Sie STRG+NACH-UNTEN-TASTE. Um zum vorhergehenden Blatt zu wechseln, drücken Sie STRG+NACH-OBEN-TASTE."]

{"sheet":"11","index":11,"n_rows":121,"n_cols":24,"rows_kept":121}
["Einen Punkt müssen Sie beachten: Wenn ein Spaltenfeld einer Tabelle viele Spalten hinzufügt, wird sie dadurch sehr breit. "]
["In diesem Beispiel reicht die PivotTable jetzt von Zelle C10 bis X15, da das Spaltenfeld 20 neue Spalten hinzugefügt hat. Das sind eine Menge Spalten! Dadurch müssen Leute viel hin- und herscrollen..."]
["Um dieses Tutorial fortzusetzen, drücken Sie STRG+NACH-UNTEN-TASTE. Um zum vorhergehenden Blatt zu wechseln, drücken Sie STRG+NACH-OBEN-TASTE."]
[]
[]
[]
[]
[]
[]
[null,null,"Summe von Betrag","Typ"]
[null,null,"Käufer","Arztkosten","Ausgehen","Autoversicherung","Bekleidung","Bücher","Eintrittskarten","Elektronik","Essen","Flugkosten","Gebäudeversicherung","Kraftstoff","Krankenkasse","Musik","Musikstunden","Parken","Sport","Steuern","Strom/Heizung","Vereinsbeiträge","Zahnpflege","Grand Total"]
[null,null,"Kevin",null,{"v":20,"d":"20 €"},null,{"v":125,"d":"125 €"},{"v":250,"d":"250 €"},{"v":125,"d":"125 €"},{"v":125,"d":"125 €"},{"$nulls":5},{"v":20,"d":"20 €"},{"v":250,"d":"250 €"},{"v":20,"d":"20 €"},{"$nulls":5},{"v":935,"d":"935 €"}]
[null,null,"Mama",{"v":74,"d":"74 €"},null,{"v":74,"d":"74 €"},{"$nulls":4},{"v":470,"d":"470 €"},null,{"v":235,"d":"235 €"},{"v":74,"d":"74 €"},{"v":70,"d":"70 €"},{"$nulls":5},{"v":70,"d":"70 €"},{"v":125,"d":"125 €"},{"v":235,"d":"235 €"},{"v":1427,"d":"1,427 €"}]
[null,null,"Papa",{"$nulls":8},{"v":500,"d":"500 €"},{"$nulls":6},{"v":1000,"d":"1,000 €"},{"v":500,"d":"500 €"},{"$nulls":3},{"v":2000,"d":"2,000 €"}]
[null,null,"Grand Total",{"v":74,"d":"74 €"},{"v":20,"d":"20 €"},{"v":74,"d":"74 €"},{"v":125,"d":"125 €"},{"v":250,"d":"250 €"},{"v":125,"d":"125 €"},{"v":125,"d":"125 €"},{"v":470,"d":"470 €"},{"v":500,"d":"500 €"},{"v":235,"d":"235 €"},{"v":74,"d":"74 €"},{"v":70,"d":"70 €"},{"v":20,"d":"20 €"},{"v":250,"d":"250 €"},{"v":20,"d":"20 €"},{"v":1000,"d":"1,000 €"},{"v":500,"d":"500 €"},{"v":70,"d":"70 €"},{"v":125,"d":"125 €"},{"v":235,"d":"235 €"},{"v":4362,"d":"4,362 €"}]
{"$rows_empty":84}
[null,"Datum","Käufer","Typ","Betrag"]
[null,"2017-01-17","Papa","Sport",{"v":1000,"d":"1,000 €"}]
[null,"2017-01-17","Papa","Flugkosten",{"v":500,"d":"500 €"}]
[null,"2017-01-17","Papa","Steuern",{"v":500,"d":"500 €"}]
[null,"2017-02-20","Kevin","Musik",{"v":20,"d":"20 €"}]
[null,"2017-02-25","Kevin","Eintrittskarten",{"v":125,"d":"125 €"}]
[null,"2017-01-21","Kevin","Bücher",{"v":250,"d":"250 €"}]
[null,"2017-02-20","Kevin","Ausgehen",{"v":20,"d":"20 €"}]
[null,"2017-02-25","Kevin","Bekleidung",{"v":125,"d":"125 €"}]
[null,"2017-01-21","Kevin","Musikstunden",{"v":250,"d":"250 €"}]
[null,"2017-02-20","Kevin","Parken",{"v":20,"d":"20 €"}]
[null,"2017-02-25","Kevin","Elektronik",{"v":125,"d":"125 €"}]
[null,"2017-01-01","Mama","Kraftstoff",{"v":74,"d":"74 €"}]
[null,"2017-01-15","Mama","Essen",{"v":235,"d":"235 €"}]
[null,"2017-01-21","Mama","Vereinsbeiträge",{"v":125,"d":"125 €"}]
[null,"2017-02-02","Mama","Essen",{"v":235,"d":"235 €"}]
[null,"2017-01-01","Mama","Arztkosten",{"v":74,"d":"74 €"}]
[null,"2017-01-15","Mama","Strom/Heizung",{"v":70,"d":"70 €"}]
[null,"2017-02-02","Mama","Zahnpflege",{"v":235,"d":"235 €"}]
[null,"2017-01-01","Mama","Autoversicherung",{"v":74,"d":"74 €"}]
[null,"2017-01-15","Mama","Krankenkasse",{"v":70,"d":"70 €"}]
[null,"2017-02-02","Mama","Gebäudeversicherung",{"v":235,"d":"235 €"}]

{"sheet":"12","index":12,"n_rows":119,"n_cols":5,"rows_kept":119}
["Es gibt aber eine Alternative zu diesen extrabreiten PivotTables: Sie können stattdessen ein zweites Zeilenfeld verwenden. Ein zweites Zeilenfeld wird eingezogen unter dem erstes Zeilenfeld angezeigt."]
["In diesem Beispiel reicht die PivotTable von Zelle D8 bis E32. Sie zeigt \"Papa\", \"Kevin\" und \"Mama\" als erstes Zeilenfeld in Spalte D. Anschließend finden sich die Ausgabenarten unterhalb dieser mit Einträgen wie \"Sport\", \"Flugkosten\", \"Ausgehen\" usw."]
["WISSENSWERTES\nBei einem zweites Zeilenfeld ergibt sich eine vertikal statt horizontal ausgerichtete PivotTable. Manche Personen finden vertikale PivotTables leichter zu lesen, da sie nicht so viel von einer Seite zu anderen scrollen müssen."]
["EXCEL-JARGON\nManchmal wird ein zweites Zeilenfeld als \"sekundäres Zeilenfeld\" bezeichnet."]
["Um dieses Tutorial fortzusetzen, drücken Sie STRG+NACH-UNTEN-TASTE. Um zum vorhergehenden Blatt zu wechseln, drücken Sie STRG+NACH-OBEN-TASTE."]
[]
[]
[{"$nulls":3},"Row Labels","Summe von Betrag"]
[{"$nulls":3},"Papa",{"v":2000,"d":"2,000 €"}]
[{"$nulls":3},"Sport",{"v":1000,"d":"1,000 €"}]
[{"$nulls":3},"Steuern",{"v":500,"d":"500 €"}]
[{"$nulls":3},"Flugkosten",{"v":500,"d":"500 €"}]
[{"$nulls":3},"Kevin",{"v":935,"d":"935 €"}]
[{"$nulls":3},"Bücher",{"v":250,"d":"250 €"}]
[{"$nulls":3},"Musik",{"v":20,"d":"20 €"}]
[{"$nulls":3},"Eintrittskarten",{"v":125,"d":"125 €"}]
[{"$nulls":3},"Ausgehen",{"v":20,"d":"20 €"}]
[{"$nulls":3},"Parken",{"v":20,"d":"20 €"}]
[{"$nulls":3},"Elektronik",{"v":125,"d":"125 €"}]
[{"$nulls":3},"Bekleidung",{"v":125,"d":"125 €"}]
[{"$nulls":3},"Musikstunden",{"v":250,"d":"250 €"}]
[{"$nulls":3},"Mama",{"v":1427,"d":"1,427 €"}]
[{"$nulls":3},"Essen",{"v":470,"d":"470 €"}]
[{"$nulls":3},"Kraftstoff",{"v":74,"d":"74 €"}]
[{"$nulls":3},"Strom/Heizung",{"v":70,"d":"70 €"}]
[{"$nulls":3},"Arztkosten",{"v":74,"d":"74 €"}]
[{"$nulls":3},"Zahnpflege",{"v":235,"d":"235 €"}]
[{"$nulls":3},"Autoversicherung",{"v":74,"d":"74 €"}]
[{"$nulls":3},"Vereinsbeiträge",{"v":125,"d":"125 €"}]
[{"$nulls":3},"Krankenkasse",{"v":70,"d":"70 €"}]
[{"$nulls":3},"Gebäudeversicherung",{"v":235,"d":"235 €"}]
[{"$nulls":3},"Grand Total",{"v":4362,"d":"4,362 €"}]
{"$rows_empty":65}
[null,"Datum","Käufer","Typ","Betrag"]
[null,"2017-01-17","Papa","Sport",{"v":1000,"d":"1,000 €"}]
[null,"2017-01-17","Papa","Flugkosten",{"v":500,"d":"500 €"}]
[null,"2017-01-17","Papa","Steuern",{"v":500,"d":"500 €"}]
[null,"2017-02-20","Kevin","Musik",{"v":20,"d":"20 €"}]
[null,"2017-02-25","Kevin","Eintrittskarten",{"v":125,"d":"125 €"}]
[null,"2017-01-21","Kevin","Bücher",{"v":250,"d":"250 €"}]
[null,"2017-02-20","Kevin","Ausgehen",{"v":20,"d":"20 €"}]
[null,"2017-02-25","Kevin","Bekleidung",{"v":125,"d":"125 €"}]
[null,"2017-01-21","Kevin","Musikstunden",{"v":250,"d":"250 €"}]
[null,"2017-02-20","Kevin","Parken",{"v":20,"d":"20 €"}]
[null,"2017-02-25","Kevin","Elektronik",{"v":125,"d":"125 €"}]
[null,"2017-01-01","Mama","Kraftstoff",{"v":74,"d":"74 €"}]
[null,"2017-01-15","Mama","Essen",{"v":235,"d":"235 €"}]
[null,"2017-01-21","Mama","Vereinsbeiträge",{"v":125,"d":"125 €"}]
[null,"2017-02-02","Mama","Essen",{"v":235,"d":"235 €"}]
[null,"2017-01-01","Mama","Arztkosten",{"v":74,"d":"74 €"}]
[null,"2017-01-15","Mama","Strom/Heizung",{"v":70,"d":"70 €"}]
[null,"2017-02-02","Mama","Zahnpflege",{"v":235,"d":"235 €"}]
[null,"2017-01-01","Mama","Autoversicherung",{"v":74,"d":"74 €"}]
[null,"2017-01-15","Mama","Krankenkasse",{"v":70,"d":"70 €"}]
[null,"2017-02-02","Mama","Gebäudeversicherung",{"v":235,"d":"235 €"}]

{"sheet":"13","index":13,"n_rows":3,"n_cols":1,"rows_kept":3}
["Auf dem nächsten Blatt fügen Sie ein zweites Zeilenfeld hinzu. Und dazu platzieren Sie das Feld \"Typ\" im Feld \"Zeilen\" unter dem Feld \"Käufer\"."]
["Abbildung einer Liste der PivotTable-Felder mit einem Pfeilcursor, der das Feld \"Typ\" in den Bereich \"Zeilen\" zieht."]
["Um dieses Tutorial fortzusetzen, drücken Sie STRG+NACH-UNTEN-TASTE. Um zum vorhergehenden Blatt zu wechseln, drücken Sie STRG+NACH-OBEN-TASTE."]

{"sheet":"14","index":14,"n_rows":122,"n_cols":9,"rows_kept":122}
["1. Der PivotTable-Bereich für dieses Beispiel befindet sich in den Zellen B13 bis C17. Navigieren Sie zu einer dieser Zellen. "]
["2. Drücken Sie ALT+JY, L, um die Liste der PivotTable-Felder zu starten. Der Fokus liegt standardmäßig auf dem Textfeld \"Suchen\": \"Geben Sie die zu suchenden Wörter ein\". Geben Sie nichts ein, drücken Sie stattdessen einmal die TAB-Taste. HINWEIS: Wenn die Feldliste nicht geöffnet wird, drücken Sie noch einmal ALT+JY, L."]
["3. Drücken Sie die Pfeiltasten, um zum Feld \"Typ\" zu gelangen. Drücken Sie die LEERTASTE, um das Feld \"Typ\" zum Bereich \"Zeilen\" hinzuzufügen. "]
["4. Drücken Sie ESC, um den PivotTable-Feldbereich zu schließen. "]
["Um dieses Tutorial fortzusetzen, drücken Sie STRG+NACH-UNTEN-TASTE. Um zum vorhergehenden Blatt zu wechseln, drücken Sie STRG+NACH-OBEN-TASTE.",{"$nulls":7},{"$f":"IF(AND($B$15=\"Flugkosten\",$C$36=235),\"Geht doch gut. Sie haben der\",\" \")","v":" "}]
[{"$nulls":8},{"$f":"IF(AND($B$15=\"Flugkosten\",$C$36=235),\"PivotTable ein zweites Zeilenfeld\",\" \")","v":" "}]
[{"$nulls":8},{"$f":"IF(AND($B$15=\"Flugkosten\",$C$36=235),\"hinzugefügt. Scrollen Sie nach\",\" \")","v":" "}]
[{"$nulls":8},{"$f":"IF(AND($B$15=\"Flugkosten\",$C$36=235),\"unten, und klicken Sie auf Weiter...\",\" \")","v":" "}]
[]
[]
[]
[]
[null,"Row Labels","Summe von Betrag"]
[null,"Papa",{"v":2000,"d":"2,000 €"}]
[null,"Kevin",{"v":935,"d":"935 €"}]
[null,"Mama",{"v":1427,"d":"1,427 €"}]
[null,"Grand Total",{"v":4362,"d":"4,362 €"}]
{"$rows_empty":83}
[null,"Datum","Käufer","Typ","Betrag"]
[null,"2017-01-17","Papa","Sport",{"v":1000,"d":"1,000 €"}]
[null,"2017-01-17","Papa","Flugkosten",{"v":500,"d":"500 €"}]
[null,"2017-01-17","Papa","Steuern",{"v":500,"d":"500 €"}]
[null,"2017-02-20","Kevin","Musik",{"v":20,"d":"20 €"}]
[null,"2017-02-25","Kevin","Eintrittskarten",{"v":125,"d":"125 €"}]
[null,"2017-01-21","Kevin","Bücher",{"v":250,"d":"250 €"}]
[null,"2017-02-20","Kevin","Ausgehen",{"v":20,"d":"20 €"}]
[null,"2017-02-25","Kevin","Bekleidung",{"v":125,"d":"125 €"}]
[null,"2017-01-21","Kevin","Musikstunden",{"v":250,"d":"250 €"}]
[null,"2017-02-20","Kevin","Parken",{"v":20,"d":"20 €"}]
[null,"2017-02-25","Kevin","Elektronik",{"v":125,"d":"125 €"}]
[null,"2017-01-01","Mama","Kraftstoff",{"v":74,"d":"74 €"}]
[null,"2017-01-15","Mama","Essen",{"v":235,"d":"235 €"}]
[null,"2017-01-21","Mama","Vereinsbeiträge",{"v":125,"d":"125 €"}]
[null,"2017-02-02","Mama","Essen",{"v":235,"d":"235 €"}]
[null,"2017-01-01","Mama","Arztkosten",{"v":74,"d":"74 €"}]
[null,"2017-01-15","Mama","Strom/Heizung",{"v":70,"d":"70 €"}]
[null,"2017-02-02","Mama","Zahnpflege",{"v":235,"d":"235 €"}]
[null,"2017-01-01","Mama","Autoversicherung",{"v":74,"d":"74 €"}]
[null,"2017-01-15","Mama","Krankenkasse",{"v":70,"d":"70 €"}]
[null,"2017-02-02","Mama","Gebäudeversicherung",{"v":235,"d":"235 €"}]

{"sheet":"15","index":15,"n_rows":121,"n_cols":7,"rows_kept":121}
["Wenn Sie die PivotTable vereinfachen müssen, können Sie die Daten für das zweite Zeilenfeld reduzieren. Sie klappen dann \"nach oben\" und sind nicht mehr im Weg. "]
["Die PivotTable für dieses Beispiel befindet sich in den Zellen F7 bis G31. Wählen Sie Zelle F8 aus, um das erste Zeilenfeld für „Papa“ auszuwählen. Drücken Sie als Nächstes ALT+JY > F, um das zweite Feld zu erweitern, oder E, um es zu reduzieren."]
["Zum Fortsetzen dieses Tutorials drücken Sie STRG+NACH-UNTEN. Um zum vorhergehenden Blatt zu wechseln, drücken Sie STRG+NACH-OBEN-TASTE."]
[]
[]
[{"$nulls":5},{"$f":"IF(AND($F$9=\"Kevin\",$G$9=935),\"Schön!\",\" \")","v":" "}]
[{"$nulls":5},"Row Labels","Summe von Betrag"]
[{"$nulls":5},"Papa",{"v":2000,"d":"2,000 €"}]
[{"$nulls":5},"Sport",{"v":1000,"d":"1,000 €"}]
[{"$nulls":5},"Steuern",{"v":500,"d":"500 €"}]
[{"$nulls":5},"Flugkosten",{"v":500,"d":"500 €"}]
[{"$nulls":5},"Kevin",{"v":935,"d":"935 €"}]
[{"$nulls":5},"Bücher",{"v":250,"d":"250 €"}]
[{"$nulls":5},"Ausgehen",{"v":20,"d":"20 €"}]
[{"$nulls":5},"Elektronik",{"v":125,"d":"125 €"}]
[{"$nulls":5},"Musik",{"v":20,"d":"20 €"}]
[{"$nulls":5},"Parken",{"v":20,"d":"20 €"}]
[{"$nulls":5},"Eintrittskarten",{"v":125,"d":"125 €"}]
[{"$nulls":5},"Bekleidung",{"v":125,"d":"125 €"}]
[{"$nulls":5},"Musikstunden",{"v":250,"d":"250 €"}]
[{"$nulls":5},"Mama",{"v":1427,"d":"1,427 €"}]
[{"$nulls":5},"Autoversicherung",{"v":74,"d":"74 €"}]
[{"$nulls":5},"Zahnpflege",{"v":235,"d":"235 €"}]
[{"$nulls":5},"Strom/Heizung",{"v":70,"d":"70 €"}]
[{"$nulls":5},"Essen",{"v":470,"d":"470 €"}]
[{"$nulls":5},"Kraftstoff",{"v":74,"d":"74 €"}]
[{"$nulls":5},"Arztkosten",{"v":74,"d":"74 €"}]
[{"$nulls":5},"Vereinsbeiträge",{"v":125,"d":"125 €"}]
[{"$nulls":5},"Krankenkasse",{"v":70,"d":"70 €"}]
[{"$nulls":5},"Gebäudeversicherung",{"v":235,"d":"235 €"}]
[{"$nulls":5},"Grand Total",{"v":4362,"d":"4,362 €"}]
{"$rows_empty":68}
[null,"Datum","Käufer","Typ","Betrag"]
[null,"2017-01-17","Papa","Sport",{"v":1000,"d":"1,000 €"}]
[null,"2017-01-17","Papa","Flugkosten",{"v":500,"d":"500 €"}]
[null,"2017-01-17","Papa","Steuern",{"v":500,"d":"500 €"}]
[null,"2017-02-20","Kevin","Musik",{"v":20,"d":"20 €"}]
[null,"2017-02-25","Kevin","Eintrittskarten",{"v":125,"d":"125 €"}]
[null,"2017-01-21","Kevin","Bücher",{"v":250,"d":"250 €"}]
[null,"2017-02-20","Kevin","Ausgehen",{"v":20,"d":"20 €"}]
[null,"2017-02-25","Kevin","Bekleidung",{"v":125,"d":"125 €"}]
[null,"2017-01-21","Kevin","Musikstunden",{"v":250,"d":"250 €"}]
[null,"2017-02-20","Kevin","Parken",{"v":20,"d":"20 €"}]
[null,"2017-02-25","Kevin","Elektronik",{"v":125,"d":"125 €"}]
[null,"2017-01-01","Mama","Kraftstoff",{"v":74,"d":"74 €"}]
[null,"2017-01-15","Mama","Essen",{"v":235,"d":"235 €"}]
[null,"2017-01-21","Mama","Vereinsbeiträge",{"v":125,"d":"125 €"}]
[null,"2017-02-02","Mama","Essen",{"v":235,"d":"235 €"}]
[null,"2017-01-01","Mama","Arztkosten",{"v":74,"d":"74 €"}]
[null,"2017-01-15","Mama","Strom/Heizung",{"v":70,"d":"70 €"}]
[null,"2017-02-02","Mama","Zahnpflege",{"v":235,"d":"235 €"}]
[null,"2017-01-01","Mama","Autoversicherung",{"v":74,"d":"74 €"}]
[null,"2017-01-15","Mama","Krankenkasse",{"v":70,"d":"70 €"}]
[null,"2017-02-02","Mama","Gebäudeversicherung",{"v":235,"d":"235 €"}]

{"sheet":"16","index":16,"n_rows":121,"n_cols":7,"rows_kept":121}
["Sie können darüber hinaus das gesamte zweite Zeilenfeld erweitern oder reduzieren, um die PivotTable sogar noch mehr zu vereinfachen."]
["Das ist der Schlüssel"]
["Wählen Sie den PivotTable-Datenbereich von Zelle F7 bis G31 aus, und drücken Sie dann ALT+JY > F, um die gesamte Gruppe zu reduzieren. Umgekehrt wird mit ALT+JY > E die gesamte Gruppe erweitert."]
["Um dieses Tutorial fortzusetzen, drücken Sie STRG+NACH-UNTEN-TASTE. Um zum vorhergehenden Blatt zu wechseln, drücken Sie STRG+NACH-OBEN-TASTE."]
[]
[{"$nulls":5},{"$f":"IF(AND($F$9=\"Kevin\",$G$9=935),\"Auf den Punkt!\",\" \")","v":" "}]
[{"$nulls":5},"Row Labels","Summe von Betrag"]
[{"$nulls":5},"Papa",{"v":2000,"d":"2,000 €"}]
[{"$nulls":5},"Flugkosten",{"v":500,"d":"500 €"}]
[{"$nulls":5},"Steuern",{"v":500,"d":"500 €"}]
[{"$nulls":5},"Sport",{"v":1000,"d":"1,000 €"}]
[{"$nulls":5},"Kevin",{"v":935,"d":"935 €"}]
[{"$nulls":5},"Bücher",{"v":250,"d":"250 €"}]
[{"$nulls":5},"Ausgehen",{"v":20,"d":"20 €"}]
[{"$nulls":5},"Elektronik",{"v":125,"d":"125 €"}]
[{"$nulls":5},"Musik",{"v":20,"d":"20 €"}]
[{"$nulls":5},"Parken",{"v":20,"d":"20 €"}]
[{"$nulls":5},"Eintrittskarten",{"v":125,"d":"125 €"}]
[{"$nulls":5},"Bekleidung",{"v":125,"d":"125 €"}]
[{"$nulls":5},"Musikstunden",{"v":250,"d":"250 €"}]
[{"$nulls":5},"Mama",{"v":1427,"d":"1,427 €"}]
[{"$nulls":5},"Autoversicherung",{"v":74,"d":"74 €"}]
[{"$nulls":5},"Zahnpflege",{"v":235,"d":"235 €"}]
[{"$nulls":5},"Strom/Heizung",{"v":70,"d":"70 €"}]
[{"$nulls":5},"Essen",{"v":470,"d":"470 €"}]
[{"$nulls":5},"Kraftstoff",{"v":74,"d":"74 €"}]
[{"$nulls":5},"Arztkosten",{"v":74,"d":"74 €"}]
[{"$nulls":5},"Vereinsbeiträge",{"v":125,"d":"125 €"}]
[{"$nulls":5},"Krankenkasse",{"v":70,"d":"70 €"}]
[{"$nulls":5},"Gebäudeversicherung",{"v":235,"d":"235 €"}]
[{"$nulls":5},"Grand Total",{"v":4362,"d":"4,362 €"}]
{"$rows_empty":68}
[null,"Datum","Käufer","Typ","Betrag"]
[null,"2017-01-17","Papa","Sport",{"v":1000,"d":"1,000 €"}]
[null,"2017-01-17","Papa","Flugkosten",{"v":500,"d":"500 €"}]
[null,"2017-01-17","Papa","Steuern",{"v":500,"d":"500 €"}]
[null,"2017-02-20","Kevin","Musik",{"v":20,"d":"20 €"}]
[null,"2017-02-25","Kevin","Eintrittskarten",{"v":125,"d":"125 €"}]
[null,"2017-01-21","Kevin","Bücher",{"v":250,"d":"250 €"}]
[null,"2017-02-20","Kevin","Ausgehen",{"v":20,"d":"20 €"}]
[null,"2017-02-25","Kevin","Bekleidung",{"v":125,"d":"125 €"}]
[null,"2017-01-21","Kevin","Musikstunden",{"v":250,"d":"250 €"}]
[null,"2017-02-20","Kevin","Parken",{"v":20,"d":"20 €"}]
[null,"2017-02-25","Kevin","Elektronik",{"v":125,"d":"125 €"}]
[null,"2017-01-01","Mama","Kraftstoff",{"v":74,"d":"74 €"}]
[null,"2017-01-15","Mama","Essen",{"v":235,"d":"235 €"}]
[null,"2017-01-21","Mama","Vereinsbeiträge",{"v":125,"d":"125 €"}]
[null,"2017-02-02","Mama","Essen",{"v":235,"d":"235 €"}]
[null,"2017-01-01","Mama","Arztkosten",{"v":74,"d":"74 €"}]
[null,"2017-01-15","Mama","Strom/Heizung",{"v":70,"d":"70 €"}]
[null,"2017-02-02","Mama","Zahnpflege",{"v":235,"d":"235 €"}]
[null,"2017-01-01","Mama","Autoversicherung",{"v":74,"d":"74 €"}]
[null,"2017-01-15","Mama","Krankenkasse",{"v":70,"d":"70 €"}]
[null,"2017-02-02","Mama","Gebäudeversicherung",{"v":235,"d":"235 €"}]

{"sheet":"17","index":17,"n_rows":107,"n_cols":13,"rows_kept":107}
["Sie können auch mehr als ein Spaltenfeld verwenden. Diese können ebenfalls erweitert oder reduziert werden."]
["Die PivotTable für dieses Beispiel reicht von Zelle B13 bis M19. In diesem Fall haben wir eine Kategorie \"Typ\" im Abschnitt \"Spalten\", die Einträge für Essen und Nebenkosten enthält."]
["PROBIEREN SIE DIES AUS\nWählen Sie in Zelle C14 \"Essen\" aus, und drücken Sie ALT+JY > F, um das gesamte Feld zu reduzieren. Mit ALT+JY > E können Sie es erweitern."]
["Um dieses Tutorial fortzusetzen, drücken Sie STRG+NACH-UNTEN-TASTE. Um zum vorhergehenden Blatt zu wechseln, drücken Sie STRG+NACH-OBEN-TASTE."]
{"$rows_empty":7}
[null,null,{"$f":"IF(AND($C$16=398,$D$15=\"Jan\"),\"Gute Arbeit!\",\" \")","v":" "}]
[null,"Summe von Betrag","Column Labels"]
[null,null,"Essen",{"$nulls":3},"Essen Total","Nebenkosten",{"$nulls":3},"Nebenkosten Total","Grand Total"]
[null,"Row Labels","Jan","Feb","Mrz","Apr",null,"Jan","Feb","Mrz","Apr"]
[null,"Kevin",{"v":74,"d":"74 €"},{"v":74,"d":"74 €"},{"v":125,"d":"125 €"},{"v":125,"d":"125 €"},{"v":398,"d":"398 €"},{"$nulls":5},{"v":398,"d":"398 €"}]
[null,"Papa",{"v":235,"d":"235 €"},{"v":235,"d":"235 €"},{"v":235,"d":"235 €"},{"v":74,"d":"74 €"},{"v":779,"d":"779 €"},{"$nulls":5},{"v":779,"d":"779 €"}]
[null,"Mama",{"$nulls":5},{"v":1000,"d":"1,000 €"},{"v":1000,"d":"1,000 €"},{"v":20,"d":"20 €"},{"v":70,"d":"70 €"},{"v":2090,"d":"2,090 €"},{"v":2090,"d":"2,090 €"}]
[null,"Grand Total",{"v":309,"d":"309 €"},{"v":309,"d":"309 €"},{"v":360,"d":"360 €"},{"v":199,"d":"199 €"},{"v":1177,"d":"1,177 €"},{"v":1000,"d":"1,000 €"},{"v":1000,"d":"1,000 €"},{"v":20,"d":"20 €"},{"v":70,"d":"70 €"},{"v":2090,"d":"2,090 €"},{"v":3267,"d":"3,267 €"}]
{"$rows_empty":75}
[null,"Monat","Käufer","Typ","Betrag"]
[null,"Jan","Kevin","Essen",{"v":74,"d":"74 €"}]
[null,"Jan","Papa","Essen",{"v":235,"d":"235 €"}]
[null,"Jan","Mama","Nebenkosten",{"v":1000,"d":"1,000 €"}]
[null,"Feb","Kevin","Essen",{"v":74,"d":"74 €"}]
[null,"Feb","Papa","Essen",{"v":235,"d":"235 €"}]
[null,"Feb","Mama","Nebenkosten",{"v":1000,"d":"1,000 €"}]
[null,"Mrz","Kevin","Essen",{"v":125,"d":"125 €"}]
[null,"Mrz","Papa","Essen",{"v":235,"d":"235 €"}]
[null,"Mrz","Mama","Nebenkosten",{"v":20,"d":"20 €"}]
[null,"Apr","Kevin","Essen",{"v":125,"d":"125 €"}]
[null,"Apr","Papa","Essen",{"v":74,"d":"74 €"}]
[null,"Apr","Mama","Nebenkosten",{"v":70,"d":"70 €"}]

{"sheet":"18","index":18,"n_rows":146,"n_cols":5,"rows_kept":146}
["Was Sie beachten sollten: Wenn Sie mehr Detail benötigen, können Sie viele weitere Zeilen- oder Spaltenfelder hinzufügen. In diesem Beispiel gibt es drei Zeilenfelder."]
["Die PivotTable für dieses Beispiel reicht von Zelle D8 bis E29 und hat Felder für \"Jahreszeit\", \"Käufer\" und \"Typ\" in Spalte D und die \"Summe von Betrag\" in Spalte E."]
["EXPERTENTIPP\nDass Sie eine Reihe von Feldern hinzufügen können, bedeutet nicht, dass Sie es tun sollten. In diesem Beispiel funktioniert es gut. Aber manchmal führen zu viele Felder mit all ihren Einzügen dazu, dass die PivotTable zu kompliziert wird und andere Personen sie nicht mehr verstehen. "]
["Um dieses Tutorial fortzusetzen, drücken Sie STRG+NACH-UNTEN-TASTE. Um zum vorhergehenden Blatt zu wechseln, drücken Sie STRG+NACH-OBEN-TASTE."]
[]
[]
[]
[{"$nulls":3},"Row Labels","Summe von Betrag"]
[{"$nulls":3},"Herbst",{"v":5425,"d":"5,425 €"}]
[{"$nulls":3},"Mama",{"v":5425,"d":"5,425 €"}]
[{"$nulls":3},"Versicherungen",{"v":1272,"d":"1,272 €"}]
[{"$nulls":3},"Miete",{"v":3220,"d":"3,220 €"}]
[{"$nulls":3},"Nebenkosten",{"v":933,"d":"933 €"}]
[{"$nulls":3},"Frühling",{"v":4760,"d":"4,760 €"}]
[{"$nulls":3},"Papa",{"v":4760,"d":"4,760 €"}]
[{"$nulls":3},"Versicherungen",{"v":1040,"d":"1,040 €"}]
[{"$nulls":3},"Miete",{"v":2400,"d":"2,400 €"}]
[{"$nulls":3},"Nebenkosten",{"v":1320,"d":"1,320 €"}]
[{"$nulls":3},"Sommer",{"v":3473,"d":"3,473 €"}]
[{"$nulls":3},"Mama",{"v":3473,"d":"3,473 €"}]
[{"$nulls":3},"Versicherungen",{"v":1080,"d":"1,080 €"}]
[{"$nulls":3},"Miete",{"v":1260,"d":"1,260 €"}]
[{"$nulls":3},"Nebenkosten",{"v":1133,"d":"1,133 €"}]
[{"$nulls":3},"Winter",{"v":4100,"d":"4,100 €"}]
[{"$nulls":3},"Papa",{"v":4100,"d":"4,100 €"}]
[{"$nulls":3},"Versicherungen",{"v":1030,"d":"1,030 €"}]
[{"$nulls":3},"Miete",{"v":1420,"d":"1,420 €"}]
[{"$nulls":3},"Nebenkosten",{"v":1650,"d":"1,650 €"}]
[{"$nulls":3},"Grand Total",{"v":17758,"d":"17,758 €"}]
{"$rows_empty":68}
[null,"Käufer","Jahreszeit","Typ","Betrag"]
[null,"Papa","Winter","Versicherungen",{"v":300,"d":"300 €"}]
[null,"Papa","Winter","Miete",{"v":200,"d":"200 €"}]
[null,"Papa","Winter","Nebenkosten",{"v":400,"d":"400 €"}]
[null,"Papa","Winter","Versicherungen",{"v":300,"d":"300 €"}]
[null,"Papa","Winter","Miete",{"v":800,"d":"800 €"}]
[null,"Papa","Winter","Nebenkosten",{"v":400,"d":"400 €"}]
[null,"Papa","Winter","Versicherungen",{"v":200,"d":"200 €"}]
[null,"Papa","Winter","Miete",{"v":300,"d":"300 €"}]
[null,"Papa","Winter","Nebenkosten",{"v":450,"d":"450 €"}]
[null,"Papa","Winter","Versicherungen",{"v":230,"d":"230 €"}]
[null,"Papa","Winter","Miete",{"v":120,"d":"120 €"}]
[null,"Papa","Winter","Nebenkosten",{"v":400,"d":"400 €"}]
[null,"Papa","Frühling","Versicherungen",{"v":210,"d":"210 €"}]
[null,"Papa","Frühling","Miete",{"v":300,"d":"300 €"}]
[null,"Papa","Frühling","Nebenkosten",{"v":400,"d":"400 €"}]
[null,"Papa","Frühling","Versicherungen",{"v":230,"d":"230 €"}]
[null,"Papa","Frühling","Miete",{"v":900,"d":"900 €"}]
[null,"Papa","Frühling","Nebenkosten",{"v":300,"d":"300 €"}]
[null,"Papa","Frühling","Versicherungen",{"v":200,"d":"200 €"}]
[null,"Papa","Frühling","Miete",{"v":1000,"d":"1,000 €"}]
[null,"Papa","Frühling","Nebenkosten",{"v":220,"d":"220 €"}]
[null,"Papa","Frühling","Versicherungen",{"v":400,"d":"400 €"}]
[null,"Papa","Frühling","Miete",{"v":200,"d":"200 €"}]
[null,"Papa","Frühling","Nebenkosten",{"v":400,"d":"400 €"}]
[null,"Mama","Sommer","Versicherungen",{"v":100,"d":"100 €"}]
[null,"Mama","Sommer","Miete",{"v":30,"d":"30 €"}]
[null,"Mama","Sommer","Nebenkosten",{"v":123,"d":"123 €"}]
[null,"Mama","Sommer","Versicherungen",{"v":300,"d":"300 €"}]
[null,"Mama","Sommer","Miete",{"v":350,"d":"350 €"}]
[null,"Mama","Sommer","Nebenkosten",{"v":230,"d":"230 €"}]
[null,"Mama","Sommer","Versicherungen",{"v":120,"d":"120 €"}]
[null,"Mama","Sommer","Miete",{"v":640,"d":"640 €"}]
[null,"Mama","Sommer","Nebenkosten",{"v":530,"d":"530 €"}]
[null,"Mama","Sommer","Versicherungen",{"v":560,"d":"560 €"}]
[null,"Mama","Sommer","Miete",{"v":240,"d":"240 €"}]
[null,"Mama","Sommer","Nebenkosten",{"v":250,"d":"250 €"}]
[null,"Mama","Herbst","Versicherungen",{"v":62,"d":"62 €"}]
[null,"Mama","Herbst","Miete",{"v":600,"d":"600 €"}]
[null,"Mama","Herbst","Nebenkosten",{"v":340,"d":"340 €"}]
[null,"Mama","Herbst","Versicherungen",{"v":205,"d":"205 €"}]
[null,"Mama","Herbst","Miete",{"v":500,"d":"500 €"}]
[null,"Mama","Herbst","Nebenkosten",{"v":403,"d":"403 €"}]
[null,"Mama","Herbst","Versicherungen",{"v":503,"d":"503 €"}]
[null,"Mama","Herbst","Miete",{"v":2000,"d":"2,000 €"}]
[null,"Mama","Herbst","Nebenkosten",{"v":140,"d":"140 €"}]
[null,"Mama","Herbst","Versicherungen",{"v":502,"d":"502 €"}]
[null,"Mama","Herbst","Miete",{"v":120,"d":"120 €"}]
[null,"Mama","Herbst","Nebenkosten",{"v":50,"d":"50 €"}]

{"sheet":"19","index":19,"n_rows":55,"n_cols":5,"rows_kept":55}
["Bereit für weitere Übungen? Nutzen Sie die Gelegenheit, die Daten unten in den Zellen B7 bis E55 zu überprüfen. Wenn Sie fertig sind, wechseln Sie zum nächsten Blatt. Dort üben wir, was Sie bisher gelernt haben. "]
["Sie müssen nicht alle Zeilen mit Daten durchgehen. Sehen Sie sich einfach die Feldnamen in Zeile 7 an. Mit denen arbeiten Sie auf dem nächsten Blatt. "]
["Um dieses Tutorial fortzusetzen, drücken Sie STRG+NACH-UNTEN-TASTE. Um zum vorhergehenden Blatt zu wechseln, drücken Sie STRG+NACH-OBEN-TASTE."]
[]
[]
[]
[null,"Jahreszeit","Vertriebsmit.","Produkt","Verkaufte Einheiten"]
[null,"Winter","Jule","Orangen",300]
[null,"Winter","Georg","Grapefruit",200]
[null,"Winter","Lorenz","Äpfel",400]
[null,"Winter","Jule","Bananen",300]
[null,"Winter","Georg","Orangen",800]
[null,"Winter","Lorenz","Grapefruit",400]
[null,"Winter","Jule","Äpfel",200]
[null,"Winter","Georg","Bananen",300]
[null,"Winter","Lorenz","Orangen",450]
[null,"Winter","Jule","Grapefruit",230]
[null,"Winter","Georg","Äpfel",120]
[null,"Winter","Lorenz","Bananen",400]
[null,"Frühling","Jule","Rüben",210]
[null,"Frühling","Georg","Kartoffeln",300]
[null,"Frühling","Lorenz","Salat",400]
[null,"Frühling","Jule","Rettiche",230]
[null,"Frühling","Georg","Rüben",900]
[null,"Frühling","Lorenz","Kartoffeln",300]
[null,"Frühling","Jule","Salat",200]
[null,"Frühling","Georg","Rettiche",1000]
[null,"Frühling","Lorenz","Rüben",220]
[null,"Frühling","Jule","Kartoffeln",400]
[null,"Frühling","Georg","Salat",200]
[null,"Frühling","Lorenz","Rettiche",400]
[null,"Sommer","Jule","Blaubeeren",100]
[null,"Sommer","Georg","Erdbeeren",30]
[null,"Sommer","Lorenz","Trauben",123]
[null,"Sommer","Jule","Kürbisse",300]
[null,"Sommer","Georg","Blaubeeren",350]
[null,"Sommer","Lorenz","Erdbeeren",230]
[null,"Sommer","Jule","Trauben",120]
[null,"Sommer","Georg","Kürbisse",640]
[null,"Sommer","Lorenz","Blaubeeren",530]
[null,"Sommer","Jule","Erdbeeren",560]
[null,"Sommer","Georg","Trauben",240]
[null,"Sommer","Lorenz","Kürbisse",250]
[null,"Herbst","Jule","Speisekürbis",62]
[null,"Herbst","Georg","Zucchini",600]
[null,"Herbst","Lorenz","Äpfel",340]
[null,"Herbst","Jule","Orangen",205]
[null,"Herbst","Georg","Speisekürbis",500]
[null,"Herbst","Lorenz","Zucchini",403]
[null,"Herbst","Jule","Äpfel",503]
[null,"Herbst","Georg","Orangen",2000]
[null,"Herbst","Lorenz","Speisekürbis",140]
[null,"Herbst","Jule","Zucchini",502]
[null,"Herbst","Georg","Äpfel",120]
[null,"Herbst","Lorenz","Orangen",50]

{"sheet":"20","index":20,"n_rows":17,"n_cols":7,"rows_kept":17}
["1. Der PivotTable-Bereich für dieses Beispiel befindet sich in den Zellen B12 bis C17. Navigieren Sie zu einer dieser Zellen. \n\n"]
["2. Drücken Sie ALT+JY, L, um die Liste der PivotTable-Felder zu starten. Der Fokus liegt standardmäßig auf dem Textfeld \"Suchen\": \"Geben Sie die zu suchenden Wörter ein\". Geben Sie nichts ein, drücken Sie stattdessen einmal die TAB-Taste. HINWEIS: Wenn die Feldliste nicht geöffnet wird, drücken Sie noch einmal ALT+JY, L."]
["3. Drücken Sie die Pfeiltasten, um zum Feld \"Vertriebsmit.\" zu gelangen. Drücken Sie die LEERTASTE, um das Feld \"Vertriebsmit.\" zum Bereich \"Zeilen\" hinzuzufügen. Wenn Sie die Details für den Vertriebsmitarbeiter im Bereich \"Spalten\" anzeigen möchten, verwenden Sie die TAB-Taste, um zum Feld \"Vertriebsmit.\" im Abschnitt \"Zeile\" zu gelangen, drücken Sie dann die LEERTASTE, und wählen Sie \"Zu Spaltenbeschriftungen verschieben\" aus. Drücken Sie ESC, um den PivotTable-Feldbereich zu schließen. "]
["4. Stellen Sie fest, wer im Herbst die meisten Artikel verkauft hat, und treffen Sie dann in Zelle G8 eine Auswahl. "]
["Um dieses Tutorial fortzusetzen, drücken Sie STRG+NACH-UNTEN-TASTE. Um zum vorhergehenden Blatt zu wechseln, drücken Sie STRG+NACH-OBEN-TASTE."]
[]
[{"$nulls":6},"Eins auswählen:"]
[]
[{"$nulls":6},{"$f":"IF($G$8=\"Georg\",\"Sie haben Recht!\",IF($G$8=\"Lorenz\",\"Versuchen Sie es noch einmal...\",IF($G$8=\"Jule\",\"Nicht ganz...\",IF($G$8=\" \",\" \",\" \"))))","v":" "}]
[]
[]
[null,"Row Labels","Summe von Verkaufte Einheiten"]
[null,"Herbst",{"v":5425,"d":"5,425"}]
[null,"Frühling",{"v":4760,"d":"4,760"}]
[null,"Sommer",{"v":3473,"d":"3,473"}]
[null,"Winter",{"v":4100,"d":"4,100"}]
[null,"Grand Total",{"v":17758,"d":"17,758"}]

{"sheet":"21","index":21,"n_rows":14,"n_cols":10,"rows_kept":14}
["1. Klicken Sie auf Zelle B13, um die PivotTable mit der Bezeichnung \"Summe von Verkaufte Einheiten\" zu aktivieren.\n\n"]
["2. Drücken Sie ALT+JY, L, um die Liste der PivotTable-Felder zu starten. Der Fokus liegt standardmäßig auf dem Textfeld \"Suchen\": \"Geben Sie die zu suchenden Wörter ein\". Geben Sie nichts ein, drücken Sie stattdessen einmal die TAB-Taste. HINWEIS: Wenn die Feldliste nicht geöffnet wird, drücken Sie noch einmal ALT+JY, L."]
["3. Verwenden Sie die Pfeiltasten und die LEERTASTE, um das Beispiel zu einer vertikalen PivotTable zu erweitern, die die Jahreszeiten links und die Vertriebsmitarbeiter eingezogen unterhalb der Jahreszeiten anzeigt. Drücken Sie die ESC-Taste, um den Bereich \"PivotTable-Felder\" zu schließen. "]
["Um dieses Tutorial fortzusetzen, drücken Sie STRG+NACH-UNTEN-TASTE. Um zum vorhergehenden Blatt zu wechseln, drücken Sie STRG+NACH-OBEN-TASTE."]
[{"$nulls":9},{"$f":"IF(AND(B$14=\"Frühling\",$C$17=1320),\"Gut gemacht. Sie haben ein sekundäres\",\" \")","v":" "}]
[{"$nulls":9},{"$f":"IF(AND(B$14=\"Frühling\",$C$17=1320),\"Zeilenfeld platziert. Scrollen Sie jetzt\",\" \")","v":" "}]
[{"$nulls":9},{"$f":"IF(AND(B$14=\"Frühling\",$C$17=1320),\"nach unten, und klicken Sie auf Weiter.\",\" \")","v":" "}]
[]
[]
[]
[]
[]
[null,"Summe von Verkaufte Einheiten"]
[null,{"v":17758,"d":"17,758"}]

{"sheet":"22","index":22,"n_rows":14,"n_cols":10,"rows_kept":14}
["1. Klicken Sie auf Zelle B13, um die PivotTable mit der Bezeichnung \"Summe von Verkaufte Einheiten\" zu aktivieren."]
["2. Drücken Sie ALT+JY, L, um die Liste der PivotTable-Felder zu starten. Der Fokus liegt standardmäßig auf dem Textfeld \"Suchen\": \"Geben Sie die zu suchenden Wörter ein\". Geben Sie nichts ein, drücken Sie stattdessen einmal die TAB-Taste. HINWEIS: Wenn die Feldliste nicht geöffnet wird, drücken Sie noch einmal ALT+JY, L."]
["3. Ändern Sie das Beispiel mithilfe der Pfeiltasten und der LEERTASTE so, dass jedes Produkt in einer eigenen Zeile und jede Jahreszeit in einer eigenen Spalte angezeigt wird."]
["Um dieses Tutorial fortzusetzen, drücken Sie STRG+NACH-UNTEN-TASTE. Um zum vorhergehenden Blatt zu wechseln, drücken Sie STRG+NACH-OBEN-TASTE.",{"$nulls":8},{"$f":"IF(AND($B$15=\"Äpfel\",$G$28=1505),\"Gut gemacht. Sie haben ein\",\" \")","v":" "}]
[{"$nulls":9},{"$f":"IF(AND($B$15=\"Äpfel\",$G$28=1505),\"Zeilenfeld links und ein\",\" \")","v":" "}]
[{"$nulls":9},{"$f":"IF(AND($B$15=\"Äpfel\",$G$28=1505),\"Spaltenfeld mit vier neuen Spalten\",\" \")","v":" "}]
[{"$nulls":9},{"$f":"IF(AND($B$15=\"Äpfel\",$G$28=1505),\"platziert. Scrollen Sie nach unten,\",\" \")","v":" "}]
[{"$nulls":9},{"$f":"IF(AND($B$15=\"Äpfel\",$G$28=1505),\"und klicken Sie auf Weiter...\",\" \")","v":" "}]
[]
[]
[]
[]
[null,"Summe von Verkaufte Einheiten"]
[null,{"v":17758,"d":"17,758"}]

{"sheet":"23","index":23,"n_rows":16,"n_cols":18,"rows_kept":16}
["1. Klicken Sie auf Zelle B13, um die PivotTable mit der Bezeichnung \"Summe von Verkaufte Einheiten\" zu aktivieren.\n\n"]
["2. Drücken Sie ALT+JY, L, um die Liste der PivotTable-Felder zu starten. Der Fokus liegt standardmäßig auf dem Textfeld \"Suchen\": \"Geben Sie die zu suchenden Wörter ein\". Geben Sie nichts ein, drücken Sie stattdessen einmal die TAB-Taste. HINWEIS: Wenn die Feldliste nicht geöffnet wird, drücken Sie noch einmal ALT+JY, L."]
["3. Verwenden Sie die TAB-, die Pfeiltasten und die LEERTASTE, um das Beispiel so zu ändern, dass es die Vertriebsmitarbeiter links mit den Jahreszeiten eingezogen darunter anzeigt."]
["Um dieses Tutorial fortzusetzen, drücken Sie STRG+NACH-UNTEN-TASTE. Um zum vorhergehenden Blatt zu wechseln, drücken Sie STRG+NACH-OBEN-TASTE."]
[{"$nulls":7},{"$f":"IF(AND($B$14=\"Lorenz\",$C$14=5036),\"Gut gemacht. Jetzt sind die Daten\",\" \")","v":" "}]
[{"$nulls":7},{"$f":"IF(AND($B$14=\"Lorenz\",$C$14=5036),\"leichter zu lesen. Scrollen Sie nach\",\" \")","v":" "}]
[{"$nulls":7},{"$f":"IF(AND($B$14=\"Lorenz\",$C$14=5036),\"unten, und klicken Sie auf Weiter...\",\" \")","v":" "}]
[]
[]
[]
[]
[]
[null,null,"Column Labels"]
[null,null,"Lorenz",{"$nulls":3},"Lorenz Total","Georg",{"$nulls":3},"Georg Total","Jule",{"$nulls":3},"Jule Total","Grand Total"]
[null,null,"Herbst","Frühling","Sommer","Winter",null,"Herbst","Frühling","Sommer","Winter",null,"Herbst","Frühling","Sommer","Winter"]
[null,"Summe von Verkaufte Einheiten",933,{"v":1320,"d":"1,320"},{"v":1133,"d":"1,133"},{"v":1650,"d":"1,650"},{"v":5036,"d":"5,036"},{"v":3220,"d":"3,220"},{"v":2400,"d":"2,400"},{"v":1260,"d":"1,260"},{"v":1420,"d":"1,420"},{"v":8300,"d":"8,300"},{"v":1272,"d":"1,272"},{"v":1040,"d":"1,040"},{"v":1080,"d":"1,080"},{"v":1030,"d":"1,030"},{"v":4422,"d":"4,422"},{"v":17758,"d":"17,758"}]

{"sheet":"24","index":24,"n_rows":14,"n_cols":8,"rows_kept":14}
["1. Klicken Sie auf Zelle B13, um die PivotTable mit der Bezeichnung \"Summe von Verkaufte Einheiten\" zu aktivieren."]
["2. Drücken Sie ALT+JY, L, um die Liste der PivotTable-Felder zu starten. Der Fokus liegt standardmäßig auf dem Textfeld \"Suchen\": \"Geben Sie die zu suchenden Wörter ein\". Geben Sie nichts ein, drücken Sie stattdessen einmal die TAB-Taste. HINWEIS: Wenn die Feldliste nicht geöffnet wird, drücken Sie noch einmal ALT+JY, L."]
["3. Verwenden Sie die TAB-, die Pfeiltasten und die LEERTASTE, um das Beispiel so zu ändern, dass für jeden Vertriebsmitarbeiter eigene Spaltenfelder mit Jahreszeiten links und den Produkten eingezogen darunter angezeigt werden."]
["4. Wählen Sie Zelle H9 aus, und lesen Sie ab, wie viele Grapefruits Lorenz im Winter verkauft hat."]
["Um dieses Tutorial fortzusetzen, drücken Sie STRG+NACH-UNTEN-TASTE. Um zum vorhergehenden Blatt zu wechseln, drücken Sie STRG+NACH-OBEN-TASTE."]
[]
[]
[{"$nulls":7},"Eins auswählen:"]
[]
[{"$nulls":7},{"$f":"IF($H$9=400,\"Sie haben Recht!\",IF($H$9=530,\"Versuchen Sie es noch einmal...\",IF($H$9=123,\"Nicht ganz...\",\" \")))","v":" "}]
[]
[]
[null,"Summe von Verkaufte Einheiten"]
[null,{"v":17758,"d":"17,758"}]

{"sheet":"Weitere Informationen","index":25,"n_rows":8,"n_cols":1,"rows_kept":8}
["Gut gemacht. Sind PivotTables nicht toll?"]
["Aber wir möchten Ihnen auch empfehlen, weiterzumachen! Es gibt noch mehr zu entdecken..."]
["Weitere Pivot-Informationen\nEntdecken Sie weitere Möglichkeiten, indem Sie diesen nützlichen Artikel zu PivotTables lesen."]
["Informationen zum Aktualisieren\nLesen Sie diesen wichtigen Artikel über das Aktualisieren von PivotTables. "]
["LinkedIn Learning\nVideo-Kurse für alle Stufen – vom Anfänger bis zum Fortgeschrittenen. Für das Selbststudium."]
["Community\nSetzen Sie sich mit anderen Excel-Fans in Verbindung. Sie können sich untereinander Hilfestellung geben."]
[]
[" "]